[Event "Live Chess"]
[Site "Chess.com"]
[Date "2024.06.02"]
[Round "-"]
[White "NeilDruggan73"]
[Black "Cruiseylee78"]
[Result "1-0"]
[WhiteElo "1779"]
[BlackElo "1646"]
[TimeControl "300"]
[EndTime "18:30:21 PDT"]
[Termination "NeilDruggan73 won by resignation"]

1. d4 {[%clk 0:04:56.1]} 1... d6 {[%clk 0:04:59.9]} 2. Bg5 {[%clk 0:04:53]} 2...
Nd7 {[%clk 0:04:59.8]} 3. e4 {[%clk 0:04:51]} 3... h6 {[%clk 0:04:59.7]} 4. Bh4
{[%clk 0:04:49.1]} 4... Ngf6 {[%clk 0:04:58.3]} 5. Nc3 {[%clk 0:04:45]} 5... e5
{[%clk 0:04:56.9]} 6. d5 {[%clk 0:04:43.2]} 6... c6 {[%clk 0:04:53.5]} 7. Be2
{[%clk 0:04:36.2]} 7... Qc7 {[%clk 0:04:49.5]} 8. Nf3 {[%clk 0:04:24.5]} 8...
Be7 {[%clk 0:04:48.4]} 9. O-O {[%clk 0:04:22.1]} 9... g5 {[%clk 0:04:47.5]} 10.
Bg3 {[%clk 0:04:20.7]} 10... Nf8 {[%clk 0:04:46.7]} 11. a4 {[%clk 0:04:08.3]}
11... Ng6 {[%clk 0:04:45.5]} 12. b4 {[%clk 0:04:05.8]} 12... Nf4 {[%clk
0:04:43.6]} 13. Bc4 {[%clk 0:03:59.2]} 13... Rg8 {[%clk 0:04:41.5]} 14. dxc6
{[%clk 0:03:57.1]} 14... bxc6 {[%clk 0:04:40.4]} 15. b5 {[%clk 0:03:46.6]} 15...
g4 {[%clk 0:04:30.5]} 16. Nh4 {[%clk 0:03:41.2]} 16... h5 {[%clk 0:04:25.3]} 17.
bxc6 {[%clk 0:03:39.9]} 17... a5 {[%clk 0:04:15.6]} 18. Nb5 {[%clk 0:03:32.6]}
18... Qxc6 {[%clk 0:04:11.6]} 19. Bd5 {[%clk 0:03:24.3]} 19... N6xd5 {[%clk
0:04:08.3]} 20. exd5 {[%clk 0:03:23.2]} 20... Nxd5 {[%clk 0:04:05.8]} 21. Qxd5
{[%clk 0:03:21.7]} 21... Qxd5 {[%clk 0:04:04.1]} 22. Nc7+ {[%clk 0:03:20.5]}
22... Kf8 {[%clk 0:04:03.1]} 23. Nxd5 {[%clk 0:03:20]} 23... Bb7 {[%clk
0:04:00.9]} 24. Nxe7 {[%clk 0:03:17.6]} 24... Kxe7 {[%clk 0:04:00.8]} 25. Nf5+
{[%clk 0:03:14.5]} 25... Kf6 {[%clk 0:03:58.2]} 26. Ne3 {[%clk 0:03:11.8]} 26...
Rh8 {[%clk 0:03:50.1]} 27. Rab1 {[%clk 0:03:10.7]} 27... Be4 {[%clk 0:03:42]}
28. f3 {[%clk 0:03:07.5]} 28... h4 {[%clk 0:03:37.1]} 29. Nxg4+ {[%clk
0:03:03.6]} 29... Kg5 {[%clk 0:03:33.5]} 30. Be1 {[%clk 0:02:56.6]} 30... Bxc2
{[%clk 0:03:30.2]} 31. Bd2+ {[%clk 0:02:54.5]} 31... Kf5 {[%clk 0:03:28]} 32.
Rb7 {[%clk 0:02:50.6]} 32... Bxa4 {[%clk 0:03:18.6]} 33. Rxf7+ {[%clk
0:02:48.1]} 33... Kg6 {[%clk 0:03:18.5]} 34. Rf6+ {[%clk 0:02:45.7]} 34... Kg7
{[%clk 0:03:12.2]} 35. Rxd6 {[%clk 0:02:40.4]} 35... Bb5 {[%clk 0:03:09.2]} 36.
Re1 {[%clk 0:02:35.3]} 36... h3 {[%clk 0:03:06.4]} 37. g3 {[%clk 0:02:32.9]}
37... Raf8 {[%clk 0:03:01.9]} 38. Re3 {[%clk 0:02:24.9]} 38... a4 {[%clk
0:02:50.8]} 39. Bc3 {[%clk 0:02:23.3]} 39... Rf5 {[%clk 0:02:46.5]} 40. Bxe5+
{[%clk 0:02:20.6]} 40... Rxe5 {[%clk 0:02:43.4]} 41. Rxe5 {[%clk 0:02:19.3]}
41... a3 {[%clk 0:02:42.1]} 42. Re7+ {[%clk 0:02:17]} 42... Kf8 {[%clk
0:02:40.5]} 43. Rb7 {[%clk 0:02:13.3]} 43... Be8 {[%clk 0:02:35]} 44. Ra6 {[%clk
0:02:06.2]} 1-0

[Event "Live Chess"]
[Site "Chess.com"]
[Date "2024.06.02"]
[Round "-"]
[White "e4evr"]
[Black "ACM42"]
[Result "0-1"]
[WhiteElo "2229"]
[BlackElo "2170"]
[TimeControl "300"]
[EndTime "18:30:59 PDT"]
[Termination "ACM42 won by checkmate"]

1. c4 {[%clk 0:04:58]} 1... Nf6 {[%clk 0:04:58.3]} 2. g3 {[%clk 0:04:57.9]} 2...
g6 {[%clk 0:04:57.6]} 3. Bh3 {[%clk 0:04:57.4]} 3... Bg7 {[%clk 0:04:57.1]} 4.
Bg2 {[%clk 0:04:57.3]} 4... O-O {[%clk 0:04:53]} 5. Na3 {[%clk 0:04:57.2]} 5...
d6 {[%clk 0:04:50.1]} 6. Nc2 {[%clk 0:04:55.9]} 6... c5 {[%clk 0:04:48.8]} 7.
Rb1 {[%clk 0:04:55.5]} 7... Nc6 {[%clk 0:04:47.6]} 8. Na1 {[%clk 0:04:55.1]}
8... a5 {[%clk 0:04:43.6]} 9. f4 {[%clk 0:04:54.3]} 9... Qc7 {[%clk 0:04:37.4]}
10. Nh3 {[%clk 0:04:53.6]} 10... Rb8 {[%clk 0:04:36.1]} 11. Nf2 {[%clk
0:04:52.8]} 11... b5 {[%clk 0:04:34.8]} 12. cxb5 {[%clk 0:04:51.8]} 12... Rxb5
{[%clk 0:04:33.3]} 13. O-O {[%clk 0:04:51.4]} 13... Ba6 {[%clk 0:04:30]} 14. Nh1
{[%clk 0:04:50.5]} 14... Rfb8 {[%clk 0:04:28]} 15. Re1 {[%clk 0:04:49.6]} 15...
d5 {[%clk 0:04:21.4]} 16. Bf1 {[%clk 0:04:48.7]} 16... d4 {[%clk 0:04:16.2]} 17.
e4 {[%clk 0:04:47]} 17... e5 {[%clk 0:04:12.8]} 18. Bxb5 {[%clk 0:04:45.8]}
18... Bxb5 {[%clk 0:04:10.9]} 19. d3 {[%clk 0:04:45.3]} 19... c4 {[%clk
0:04:03.3]} 20. Nf2 {[%clk 0:04:41.3]} 20... cxd3 {[%clk 0:03:51.2]} 21. Nxd3
{[%clk 0:04:40.5]} 21... Bxd3 {[%clk 0:03:50.2]} 22. Qxd3 {[%clk 0:04:39.5]}
22... Nb4 {[%clk 0:03:49]} 23. Qf1 {[%clk 0:04:36.2]} 23... Nxa2 {[%clk
0:03:42.6]} 24. Bd2 {[%clk 0:04:33.4]} 24... Qb7 {[%clk 0:03:29.9]} 25. Bxa5
{[%clk 0:04:29.7]} 25... Nxe4 {[%clk 0:03:27.4]} 26. Nc2 {[%clk 0:04:24.7]}
26... f5 {[%clk 0:03:10.4]} 27. fxe5 {[%clk 0:04:22.6]} 27... d3 {[%clk
0:03:09.1]} 28. Qxd3 {[%clk 0:04:19.9]} 28... Qa7+ {[%clk 0:03:07.8]} 29. Kh1
{[%clk 0:04:10.3]} 29... Nf2+ {[%clk 0:03:04.2]} 30. Kg2 {[%clk 0:04:09.5]}
30... Nxd3 {[%clk 0:03:03.1]} 31. Bb6 {[%clk 0:04:06.5]} 31... Qxb6 {[%clk
0:03:01.5]} 32. Re4 {[%clk 0:04:05.8]} 32... Qc6 {[%clk 0:02:59.9]} 33. Nb4
{[%clk 0:04:04.1]} 33... Qxe4+ {[%clk 0:02:58.4]} 34. Kh3 {[%clk 0:04:03.4]}
34... Nf2# {[%clk 0:02:56.2]} 0-1

[Event "Live Chess"]
[Site "Chess.com"]
[Date "2024.06.02"]
[Round "-"]
[White "grillage"]
[Black "lyricalschemes"]
[Result "0-1"]
[WhiteElo "1862"]
[BlackElo "2247"]
[TimeControl "300"]
[EndTime "18:31:12 PDT"]
[Termination "lyricalschemes won by resignation"]

1. d4 {[%clk 0:04:58]} 1... Nf6 {[%clk 0:04:58.3]} 2. Nf3 {[%clk 0:04:56]} 2...
d5 {[%clk 0:04:56.8]} 3. c4 {[%clk 0:04:54.4]} 3... e6 {[%clk 0:04:55.7]} 4.
cxd5 {[%clk 0:04:49.7]} 4... exd5 {[%clk 0:04:54.6]} 5. Nc3 {[%clk 0:04:48.9]}
5... Bb4 {[%clk 0:04:52.5]} 6. Qa4+ {[%clk 0:04:44.6]} 6... Nc6 {[%clk
0:04:50.7]} 7. Bg5 {[%clk 0:04:40.2]} 7... Bxc3+ {[%clk 0:04:47.4]} 8. bxc3
{[%clk 0:04:38.3]} 8... O-O {[%clk 0:04:45.3]} 9. e3 {[%clk 0:04:36.5]} 9... Bf5
{[%clk 0:04:40.6]} 10. Be2 {[%clk 0:04:29.8]} 10... Qd6 {[%clk 0:04:34.3]} 11.
Bf4 {[%clk 0:04:26.9]} 11... Qd7 {[%clk 0:04:32.5]} 12. O-O {[%clk 0:04:23.6]}
12... Ne4 {[%clk 0:04:30.3]} 13. Rac1 {[%clk 0:04:06]} 13... a6 {[%clk
0:04:21.9]} 14. c4 {[%clk 0:04:00.8]} 14... Nxd4 {[%clk 0:04:07.5]} 15. Nxd4
{[%clk 0:03:55.5]} 15... Qxa4 {[%clk 0:04:03.9]} 0-1

[Event "Live Chess"]
[Site "Chess.com"]
[Date "2024.06.02"]
[Round "-"]
[White "Mikhail_Golubev"]
[Black "ShanthamGrarks"]
[Result "1-0"]
[WhiteElo "2570"]
[BlackElo "1861"]
[TimeControl "300"]
[EndTime "18:31:59 PDT"]
[Termination "Mikhail_Golubev won by checkmate"]

1. e4 {[%clk 0:04:58.2]} 1... e6 {[%clk 0:04:54.7]} 2. d4 {[%clk 0:04:56.7]}
2... d5 {[%clk 0:04:54]} 3. e5 {[%clk 0:04:56.3]} 3... c5 {[%clk 0:04:52.2]} 4.
c3 {[%clk 0:04:55.4]} 4... Nc6 {[%clk 0:04:51.6]} 5. Nf3 {[%clk 0:04:52.8]} 5...
Qb6 {[%clk 0:04:50.8]} 6. Bd3 {[%clk 0:04:51.9]} 6... cxd4 {[%clk 0:04:49.5]} 7.
O-O {[%clk 0:04:51]} 7... h6 {[%clk 0:04:44.2]} 8. cxd4 {[%clk 0:04:35.7]} 8...
Bd7 {[%clk 0:04:42.7]} 9. Nc3 {[%clk 0:04:33.9]} 9... Nxd4 {[%clk 0:04:37.9]}
10. Nxd4 {[%clk 0:04:32.3]} 10... Qxd4 {[%clk 0:04:36]} 11. Nb5 {[%clk
0:04:31.4]} 11... Qxe5 {[%clk 0:04:27.7]} 12. Re1 {[%clk 0:04:30.1]} 12... Qb8
{[%clk 0:04:16.9]} 13. Qf3 {[%clk 0:04:27.7]} 13... g5 {[%clk 0:04:00]} 14. Qxd5
{[%clk 0:04:09.4]} 14... Nf6 {[%clk 0:03:54.7]} 15. Qc4 {[%clk 0:03:45.7]} 15...
Bd6 {[%clk 0:03:41.2]} 16. Qc3 {[%clk 0:03:05.5]} 16... Ke7 {[%clk 0:03:29.2]}
17. Nd4 {[%clk 0:02:01.5]} 17... e5 {[%clk 0:02:14]} 18. Nf5+ {[%clk 0:01:56]}
18... Bxf5 {[%clk 0:02:11.9]} 19. Bxf5 {[%clk 0:01:55.9]} 19... Qc7 {[%clk
0:02:02.3]} 20. Qh3 {[%clk 0:01:48.8]} 20... Rag8 {[%clk 0:01:45.4]} 21. Be3
{[%clk 0:01:43.5]} 21... Nd5 {[%clk 0:01:39.7]} 22. Rac1 {[%clk 0:01:34.1]}
22... Qd8 {[%clk 0:01:28]} 23. Red1 {[%clk 0:01:29.6]} 23... Nxe3 {[%clk
0:01:03.1]} 24. Qxe3 {[%clk 0:01:26.2]} 24... Qb6 {[%clk 0:00:52.5]} 25. Qf3
{[%clk 0:01:01.2]} 25... Rd8 {[%clk 0:00:49.5]} 26. Rd5 {[%clk 0:00:48.2]} 26...
Qxb2 {[%clk 0:00:45.4]} 27. Rb1 {[%clk 0:00:45]} 27... Qxa2 {[%clk 0:00:32.8]}
28. Rxb7+ {[%clk 0:00:43.1]} 28... Kf8 {[%clk 0:00:32.3]} 29. g3 {[%clk
0:00:39.8]} 29... Be7 {[%clk 0:00:13.7]} 30. Be6 {[%clk 0:00:23]} 30... Rxd5
{[%clk 0:00:11.5]} 31. Qxf7# {[%clk 0:00:21.1]} 1-0

[Event "Live Chess"]
[Site "Chess.com"]
[Date "2024.06.02"]
[Round "-"]
[White "asingardenof"]
[Black "Harry_Li"]
[Result "0-1"]
[WhiteElo "626"]
[BlackElo "2114"]
[TimeControl "300"]
[EndTime "18:32:20 PDT"]
[Termination "Harry_Li won by checkmate"]

1. d4 {[%clk 0:04:56.2]} 1... Nf6 {[%clk 0:04:57.3]} 2. c4 {[%clk 0:04:54.7]}
2... g6 {[%clk 0:04:56.4]} 3. e3 {[%clk 0:04:51.3]} 3... Bg7 {[%clk 0:04:55.7]}
4. Nc3 {[%clk 0:04:49.9]} 4... O-O {[%clk 0:04:54.6]} 5. Nf3 {[%clk 0:04:48.7]}
5... d6 {[%clk 0:04:53.8]} 6. Bd3 {[%clk 0:04:47.5]} 6... Nbd7 {[%clk
0:04:52.8]} 7. O-O {[%clk 0:04:46]} 7... e5 {[%clk 0:04:51.2]} 8. d5 {[%clk
0:04:43.6]} 8... Nc5 {[%clk 0:04:46.6]} 9. Bc2 {[%clk 0:04:38.3]} 9... a5 {[%clk
0:04:45.3]} 10. Nb5 {[%clk 0:04:34.7]} 10... e4 {[%clk 0:04:21.2]} 11. Ng5
{[%clk 0:04:27.4]} 11... h6 {[%clk 0:04:17.5]} 12. Nxe4 {[%clk 0:04:25.9]} 12...
Nfxe4 {[%clk 0:04:11.8]} 13. Qe1 {[%clk 0:04:09.3]} 13... c6 {[%clk 0:03:54.6]}
14. Nd4 {[%clk 0:03:58.4]} 14... cxd5 {[%clk 0:03:48.7]} 15. cxd5 {[%clk
0:03:54.2]} 15... Qh4 {[%clk 0:03:37.2]} 16. g3 {[%clk 0:03:41.2]} 16... Qh5
{[%clk 0:03:29.2]} 17. a3 {[%clk 0:03:32.6]} 17... Qxd5 {[%clk 0:03:25.3]} 18.
b4 {[%clk 0:03:32.5]} 18... axb4 {[%clk 0:03:23.6]} 19. a4 {[%clk 0:03:26.8]}
19... Ng5 {[%clk 0:03:19.9]} 20. Qxb4 {[%clk 0:03:20.7]} 20... Nh3# {[%clk
0:03:19]} 0-1

[Event "Live Chess"]
[Site "Chess.com"]
[Date "2024.06.02"]
[Round "-"]
[White "Frankie_Badacsonyi"]
[Black "MagnersCarlsberg2870"]
[Result "1-0"]
[WhiteElo "2410"]
[BlackElo "1802"]
[TimeControl "300"]
[EndTime "18:33:45 PDT"]
[Termination "Frankie_Badacsonyi won by resignation"]

1. Nf3 {[%clk 0:04:57.5]} 1... Nc6 {[%clk 0:04:58.3]} 2. d4 {[%clk 0:04:54.4]}
2... d5 {[%clk 0:04:54.2]} 3. g3 {[%clk 0:04:51.8]} 3... Bf5 {[%clk 0:04:43.5]}
4. Bg2 {[%clk 0:04:49.6]} 4... Qd7 {[%clk 0:04:42.4]} 5. c4 {[%clk 0:04:38.4]}
5... O-O-O {[%clk 0:04:36.4]} 6. cxd5 {[%clk 0:04:36.1]} 6... Nb4 {[%clk
0:04:29.8]} 7. Na3 {[%clk 0:04:30.2]} 7... e6 {[%clk 0:04:21.6]} 8. dxe6 {[%clk
0:04:24.6]} 8... Qxe6 {[%clk 0:04:19.4]} 9. O-O {[%clk 0:04:20.2]} 9... h5
{[%clk 0:04:16.8]} 10. Qa4 {[%clk 0:04:11.3]} 10... Kb8 {[%clk 0:04:11.8]} 11.
Bf4 {[%clk 0:04:06.1]} 11... h4 {[%clk 0:04:07.5]} 12. Nb5 {[%clk 0:04:02.7]}
12... Bd6 {[%clk 0:03:42.3]} 13. Bxd6 {[%clk 0:03:59.6]} 13... cxd6 {[%clk
0:03:31.8]} 14. Qxb4 {[%clk 0:03:42.5]} 14... hxg3 {[%clk 0:03:27.8]} 15. fxg3
{[%clk 0:03:39.5]} 15... Bh3 {[%clk 0:03:26.4]} 16. Qa5 {[%clk 0:03:32.4]} 16...
Nf6 {[%clk 0:03:16.3]} 17. Qxa7+ {[%clk 0:03:27.9]} 17... Kc8 {[%clk 0:03:14.9]}
18. Rac1+ {[%clk 0:03:25.3]} 18... Kd7 {[%clk 0:03:13.9]} 19. Qxb7+ {[%clk
0:03:23.9]} 19... Ke8 {[%clk 0:03:12.9]} 20. Nc7+ {[%clk 0:03:23.1]} 1-0

[Event "Live Chess"]
[Site "Chess.com"]
[Date "2024.06.02"]
[Round "-"]
[White "lyricalschemes"]
[Black "gobbles19"]
[Result "0-1"]
[WhiteElo "2230"]
[BlackElo "2305"]
[TimeControl "300"]
[EndTime "18:35:19 PDT"]
[Termination "gobbles19 won by resignation"]

1. e4 {[%clk 0:04:58.8]} 1... d6 {[%clk 0:04:58.4]} 2. d4 {[%clk 0:04:57.2]}
2... Nf6 {[%clk 0:04:57.2]} 3. Nc3 {[%clk 0:04:56.5]} 3... g6 {[%clk 0:04:56]}
4. Bg5 {[%clk 0:04:55.4]} 4... h6 {[%clk 0:04:53.4]} 5. Be3 {[%clk 0:04:52.7]}
5... Bg7 {[%clk 0:04:52.9]} 6. h3 {[%clk 0:04:50.8]} 6... Nbd7 {[%clk
0:04:44.3]} 7. Qd2 {[%clk 0:04:49.3]} 7... c6 {[%clk 0:04:40.7]} 8. a4 {[%clk
0:04:44.4]} 8... Qa5 {[%clk 0:04:36]} 9. Bc4 {[%clk 0:04:35.8]} 9... b5 {[%clk
0:04:31.4]} 10. Bd3 {[%clk 0:04:17.8]} 10... b4 {[%clk 0:04:23.7]} 11. Nce2
{[%clk 0:04:15.8]} 11... c5 {[%clk 0:04:19.3]} 12. Nf3 {[%clk 0:04:12.8]} 12...
Ba6 {[%clk 0:04:12.7]} 13. O-O {[%clk 0:04:04.3]} 13... c4 {[%clk 0:04:08.8]}
14. e5 {[%clk 0:04:03]} 14... cxd3 {[%clk 0:04:04.4]} 15. exf6 {[%clk
0:04:00.3]} 15... dxe2 {[%clk 0:04:03.3]} 16. fxg7 {[%clk 0:03:56]} 16...
exf1=Q+ {[%clk 0:04:02.2]} 17. Rxf1 {[%clk 0:03:52.5]} 17... Rg8 {[%clk
0:04:01.8]} 18. Bxh6 {[%clk 0:03:51.2]} 18... Bxf1 {[%clk 0:04:00.5]} 19. Kxf1
{[%clk 0:03:50.2]} 19... Qxa4 {[%clk 0:03:46.6]} 20. Qg5 {[%clk 0:03:48.8]}
20... Rc8 {[%clk 0:03:32.8]} 21. Qd5 {[%clk 0:03:46.6]} 21... Qxc2 {[%clk
0:03:27.8]} 22. Kg1 {[%clk 0:03:41.8]} 22... Qc6 {[%clk 0:03:14.1]} 0-1

[Event "Live Chess"]
[Site "Chess.com"]
[Date "2024.06.02"]
[Round "-"]
[White "StoreySniper"]
[Black "Dhaydon19"]
[Result "0-1"]
[WhiteElo "2511"]
[BlackElo "2683"]
[TimeControl "300"]
[EndTime "18:35:41 PDT"]
[Termination "Dhaydon19 won by resignation"]

1. e4 {[%clk 0:04:57.9]} 1... e6 {[%clk 0:04:59.1]} 2. d4 {[%clk 0:04:54.9]}
2... d5 {[%clk 0:04:58.5]} 3. Nd2 {[%clk 0:04:54.4]} 3... dxe4 {[%clk
0:04:56.4]} 4. Nxe4 {[%clk 0:04:53.3]} 4... Be7 {[%clk 0:04:55.8]} 5. Nf3 {[%clk
0:04:52.1]} 5... Nd7 {[%clk 0:04:55.1]} 6. Bd3 {[%clk 0:04:47]} 6... Ngf6 {[%clk
0:04:54.4]} 7. Ng3 {[%clk 0:04:46.2]} 7... b6 {[%clk 0:04:53.3]} 8. Be3 {[%clk
0:04:39.8]} 8... Bb7 {[%clk 0:04:52.2]} 9. O-O {[%clk 0:04:38.9]} 9... O-O
{[%clk 0:04:51.5]} 10. c4 {[%clk 0:04:37.6]} 10... c5 {[%clk 0:04:50.7]} 11. Qe2
{[%clk 0:04:30.3]} 11... cxd4 {[%clk 0:04:49.9]} 12. Bxd4 {[%clk 0:04:27.3]}
12... Nc5 {[%clk 0:04:49]} 13. Rfd1 {[%clk 0:04:09.9]} 13... Nxd3 {[%clk
0:04:47.8]} 14. Rxd3 {[%clk 0:04:03.8]} 14... Qc7 {[%clk 0:04:46.5]} 15. b3
{[%clk 0:03:54.3]} 15... Rad8 {[%clk 0:04:44.2]} 16. Rad1 {[%clk 0:03:51.8]}
16... h6 {[%clk 0:04:37]} 17. h3 {[%clk 0:03:45.9]} 17... Rfe8 {[%clk
0:04:25.5]} 18. Be5 {[%clk 0:03:41.1]} 18... Qc8 {[%clk 0:04:22.8]} 19. Bd6
{[%clk 0:03:26.3]} 19... Bxd6 {[%clk 0:04:18]} 20. Rxd6 {[%clk 0:03:25.2]} 20...
Rxd6 {[%clk 0:04:17.7]} 21. Rxd6 {[%clk 0:03:24.5]} 21... Rd8 {[%clk 0:04:15]}
22. Rxd8+ {[%clk 0:03:16.4]} 22... Qxd8 {[%clk 0:04:14.2]} 23. Ne5 {[%clk
0:03:15.4]} 23... Qd4 {[%clk 0:04:12.5]} 24. Kh2 {[%clk 0:02:53.2]} 24... Qf4
{[%clk 0:03:54.4]} 25. Nd3 {[%clk 0:02:44.8]} 25... Qd6 {[%clk 0:03:50.8]} 26.
f4 {[%clk 0:02:32.3]} 26... Qd4 {[%clk 0:03:44.6]} 27. Qe5 {[%clk 0:02:15.5]}
27... Qd8 {[%clk 0:03:24.2]} 28. Qe3 {[%clk 0:02:10.5]} 28... h5 {[%clk
0:03:20.2]} 29. Ne5 {[%clk 0:01:55.4]} 29... h4 {[%clk 0:03:17.5]} 30. Ne2
{[%clk 0:01:51.9]} 30... Ne4 {[%clk 0:03:09.6]} 31. Nf3 {[%clk 0:01:36.8]} 31...
Nd6 {[%clk 0:02:53.1]} 32. Ng5 {[%clk 0:01:29]} 32... Nf5 {[%clk 0:02:49.8]} 33.
Qe5 {[%clk 0:01:11.8]} 33... Qc8 {[%clk 0:02:31]} 34. Nd4 {[%clk 0:01:04.3]}
34... Nxd4 {[%clk 0:02:15.7]} 35. Qxd4 {[%clk 0:01:03.1]} 35... f6 {[%clk
0:02:15.4]} 36. Ne4 {[%clk 0:00:58.3]} 36... Qc6 {[%clk 0:02:14.4]} 37. Qd8+
{[%clk 0:00:33.6]} 37... Kh7 {[%clk 0:02:11.9]} 38. Nxf6+ {[%clk 0:00:14.3]}
38... gxf6 {[%clk 0:02:10.5]} 39. Qe7+ {[%clk 0:00:10.4]} 39... Kg6 {[%clk
0:02:09.8]} 40. f5+ {[%clk 0:00:08.8]} 40... exf5 {[%clk 0:02:08.9]} 41. Qe2
{[%clk 0:00:06.6]} 41... Qd6+ {[%clk 0:02:08.1]} 42. Kh1 {[%clk 0:00:04.8]}
42... Qe5 {[%clk 0:02:05.2]} 0-1

[Event "Live Chess"]
[Site "Chess.com"]
[Date "2024.06.02"]
[Round "-"]
[White "WelshTiger"]
[Black "CarmelJane"]
[Result "0-1"]
[WhiteElo "2430"]
[BlackElo "2047"]
[TimeControl "300"]
[EndTime "18:35:50 PDT"]
[Termination "CarmelJane won by resignation"]

1. e4 {[%clk 0:04:56.9]} 1... c5 {[%clk 0:04:59.3]} 2. Nf3 {[%clk 0:04:55.7]}
2... e6 {[%clk 0:04:58.9]} 3. c3 {[%clk 0:04:54.4]} 3... Nf6 {[%clk 0:04:57.9]}
4. e5 {[%clk 0:04:53.4]} 4... Nd5 {[%clk 0:04:57.1]} 5. d4 {[%clk 0:04:53.3]}
5... cxd4 {[%clk 0:04:56.8]} 6. cxd4 {[%clk 0:04:50.9]} 6... b6 {[%clk
0:04:52.6]} 7. Nc3 {[%clk 0:04:47.3]} 7... Nxc3 {[%clk 0:04:51.2]} 8. bxc3
{[%clk 0:04:46.2]} 8... Qc7 {[%clk 0:04:51.1]} 9. Bd2 {[%clk 0:04:43.5]} 9...
Bb7 {[%clk 0:04:50.5]} 10. Bd3 {[%clk 0:04:40.3]} 10... d6 {[%clk 0:04:48.9]}
11. exd6 {[%clk 0:04:38.9]} 11... Bxd6 {[%clk 0:04:47.3]} 12. O-O {[%clk
0:04:35.7]} 12... Nd7 {[%clk 0:04:44.3]} 13. Re1 {[%clk 0:04:29.1]} 13... O-O-O
{[%clk 0:04:37.1]} 14. h3 {[%clk 0:04:24.7]} 14... Bf4 {[%clk 0:04:32]} 15. a4
{[%clk 0:04:20.3]} 15... Nf6 {[%clk 0:04:27.2]} 16. a5 {[%clk 0:04:14]} 16...
Bxf3 {[%clk 0:04:26.2]} 17. gxf3 {[%clk 0:04:08.4]} 17... Bxd2 {[%clk
0:04:20.6]} 18. Qxd2 {[%clk 0:04:07.1]} 18... bxa5 {[%clk 0:04:19.3]} 19. Ba6+
{[%clk 0:03:46.8]} 19... Kd7 {[%clk 0:04:17.5]} 20. c4 {[%clk 0:03:46.3]} 20...
Ke7 {[%clk 0:04:12.8]} 21. Red1 {[%clk 0:03:28.6]} 21... Rd6 {[%clk 0:04:09.9]}
22. Rxa5 {[%clk 0:03:24.9]} 22... Rhd8 {[%clk 0:04:01.4]} 23. Qb4 {[%clk
0:03:17.3]} 23... Kf8 {[%clk 0:03:39]} 24. c5 {[%clk 0:02:54.5]} 24... Rd5
{[%clk 0:03:36.7]} 25. Bb7 {[%clk 0:02:34.7]} 25... Rg5+ {[%clk 0:03:33.1]} 26.
Kf1 {[%clk 0:02:33.8]} 26... Nd5 {[%clk 0:03:23.8]} 27. Bxd5 {[%clk 0:02:28]}
27... exd5 {[%clk 0:03:09.5]} 28. c6+ {[%clk 0:02:21.8]} 28... Kg8 {[%clk
0:03:07.8]} 29. Qc5 {[%clk 0:02:14.4]} 29... Qh2 {[%clk 0:03:01.2]} 30. c7
{[%clk 0:02:09.6]} 30... Rg1+ {[%clk 0:02:37.9]} 31. Ke2 {[%clk 0:02:08.3]}
31... Re8+ {[%clk 0:02:37.5]} 32. Kd3 {[%clk 0:01:41]} 32... Rxd1+ {[%clk
0:02:35.6]} 33. Kc2 {[%clk 0:01:39.2]} 33... Qxf2+ {[%clk 0:02:33.2]} 34. Kb3
{[%clk 0:01:32.8]} 34... Rb1+ {[%clk 0:02:30.2]} 35. Ka4 {[%clk 0:01:31.8]}
35... Qa2+ {[%clk 0:02:24.1]} 36. Qa3 {[%clk 0:01:30.2]} 36... Qxa3+ {[%clk
0:02:21.4]} 37. Kxa3 {[%clk 0:01:29.2]} 37... Ra1+ {[%clk 0:02:21]} 38. Kb4
{[%clk 0:01:27.8]} 38... Rxa5 {[%clk 0:02:19.9]} 39. Kxa5 {[%clk 0:01:27.3]}
39... Rc8 {[%clk 0:02:18.9]} 0-1